fUST/lending_fUST_20241008
["ID","MTS","AMOUNT","RATE_DAILY","PERIOD"]
[340048758,1728393087887,-600.0,0.00057534,120]
[340048759,1728393087897,-500.0,0.00057534,120]
[340048760,1728393087906,-597.43,0.00057534,120]
[340048761,1728393087916,-773.15,0.00057534,120]
[340048762,1728393087926,-1000.0,0.00057534,120]
[340048763,1728393087936,-161.338612,0.00057544,30]
[340048764,1728393087945,-388.240778,0.00057544,30]
[340048765,1728393087954,-500.411068,0.00057544,30]
[340048766,1728393087963,-729.53312,0.00057544,30]
[340048767,1728393087974,-183.61657,0.00057544,30]
[340048768,1728393087983,-200.0,0.00058,120]
[340048769,1728393087992,-500.0,0.00058082,120]
[340048770,1728393088002,-500.0,0.00058082,120]
[340048771,1728393088013,-500.0,0.00058082,120]
[340048772,1728393088026,-500.0,0.00058082,30]
[340048773,1728393088038,-500.0,0.00058082,120]
[340048774,1728393088048,-500.0,0.00058082,120]
[340048775,1728393088063,-500.0,0.00058082,120]
[340048776,1728393088074,-580.93451704,0.00058082,120]
[340048777,1728393088086,-500.0,0.00058082,120]
[340048778,1728393088096,-500.0,0.00058082,120]
[340048779,1728393088106,-500.0,0.00058082,120]
[340048780,1728393088116,-500.0,0.00058082,120]
[340048781,1728393088126,-500.0,0.00058082,120]
[340048782,1728393088135,-500.0,0.00058082,120]
[340048783,1728393088146,-500.0,0.00058082,120]
[340048784,1728393088155,-500.0,0.00058082,120]
[340048785,1728393088167,-500.0,0.00058082,120]
[340048786,1728393088178,-1057.53,0.00058082,120]
[340048787,1728393088189,-8577.72,0.00058082,18]
[340048788,1728393088199,-314.49885177,0.00058082,120]
[340048789,1728393088210,-500.0,0.00058082,120]
[340048790,1728393088221,-525.19,0.00058082,21]
[340048791,1728393088231,-4670.36,0.00058082,120]
[340048792,1728393088240,-561.76988418,0.00058082,120]
[340048793,1728393088249,-500.0,0.00058082,120]
[340048794,1728393088259,-500.0,0.00058082,120]
[340048795,1728393088268,-500.0,0.00058082,120]
[340048796,1728393088279,-2268.44,0.00058082,120]
[340048797,1728393088290,-1000.11,0.00058082,120]
[340048798,1728393088300,-457.26681324,0.00058082,120]
[340048799,1728393088311,-500.0,0.00058082,120]
[340048800,1728393088321,-500.0,0.00058082,120]
[340048801,1728393088331,-4166.62,0.00058082,120]
[340048802,1728393088341,-500.0,0.00058082,120]
[340048803,1728393088351,-500.0,0.00058082,120]
[340048804,1728393088362,-500.0,0.00058082,120]
[340048805,1728393088374,-500.0,0.00058082,18]
[340048806,1728393088385,-349.13,0.00058082,120]
[340048807,1728393088396,-1050.9,0.00058082,18]
[340048808,1728393088406,-500.0,0.00058082,21]
[340048809,1728393088418,-500.0,0.00058082,120]
[340048810,1728393088430,-6665.61,0.00058082,20]
[340048811,1728393088442,-1007.11,0.00058082,18]
[340048812,1728393088452,-500.0,0.00058082,21]
[340048813,1728393088464,-209.59,0.00058082,120]
[340048814,1728393088477,-500.0,0.00058082,120]
[340048815,1728393088489,-500.0,0.00058082,120]
[340048816,1728393088499,-500.0,0.00058082,120]
[340048817,1728393088509,-650.41,0.00058082,2]
[340048818,1728393088518,-500.0,0.00058082,120]
[340048819,1728393088530,-500.0,0.00058082,120]
[340048820,1728393088540,-3752.25,0.00058082,120]
[340048821,1728393088550,-4166.66,0.00058082,120]
[340048822,1728393088561,-649.6935,0.00058082,120]
[340048823,1728393088572,-872.91,0.00058082,120]
[340048824,1728393088582,-500.0,0.00058082,120]
[340048825,1728393088592,-500.0,0.00058082,120]
[340048826,1728393088602,-590.0,0.00058082,120]
[340048827,1728393088612,-600.0,0.00058082,120]
[340048828,1728393088622,-500.0,0.00058082,120]
[340048829,1728393088632,-773.15,0.00058082,120]
[340048830,1728393088642,-1000.0,0.00058082,120]
[340048831,1728393088652,-1500.0,0.00058146,15]
[340048832,1728393088663,-161.338612,0.00058237,30]
[340048833,1728393088674,-388.240778,0.00058237,30]
[340048834,1728393088683,-500.411068,0.00058237,30]
[340048835,1728393088791,-729.53312,0.00058237,30]
[340048836,1728393088804,-183.61657,0.00058237,30]
[340048837,1728393088815,-170.602256,0.00058237,30]
[340048838,1728393088825,-168.990968,0.00058237,30]
[340048839,1728393088837,-183.694886,0.00058237,30]
[340048840,1728393088846,-176.785716,0.00058237,30]
[340048841,1728393088857,-500.0,0.0005863,120]
[340048842,1728393088870,-500.0,0.0005863,120]
[340048843,1728393088881,-549.45607278,0.0005863,120]
[340048844,1728393088892,-500.0,0.0005863,30]
[340048845,1728393088904,-500.0,0.0005863,120]
[340048846,1728393088914,-500.0,0.0005863,120]
[340048847,1728393088925,-500.0,0.0005863,120]
[340048848,1728393088937,-500.0,0.0005863,120]
[340048849,1728393088947,-500.0,0.0005863,120]
[340048850,1728393088959,-150.02574683,0.0005863,120]
[340048851,1728393088968,-500.0,0.0005863,120]
[340048852,1728393088978,-500.0,0.0005863,120]
[340048853,1728393088987,-500.0,0.0005863,120]
[340048854,1728393088997,-500.0,0.0005863,120]
[340048855,1728393089006,-500.0,0.0005863,120]
[340048856,1728393089015,-500.0,0.0005863,120]
[340048857,1728393089025,-1057.53,0.0005863,120]
[340048858,1728393089044,-8577.72,0.0005863,18]
[340048859,1728393089054,-500.0,0.0005863,120]
[340048860,1728393089067,-525.19,0.0005863,21]
[340048861,1728393089077,-4670.36,0.0005863,120]
[340048862,1728393089088,-500.0,0.0005863,120]
[340048863,1728393089100,-327.94969668,0.0005863,120]
[340048864,1728393089109,-500.0,0.0005863,120]
[340048865,1728393089120,-2268.44,0.0005863,120]
[340048866,1728393089131,-1000.11,0.0005863,120]
[340048867,1728393089143,-500.0,0.0005863,120]
[340048868,1728393089152,-500.35146075,0.0005863,120]
[340048869,1728393089162,-4166.62,0.0005863,120]
[340048870,1728393089171,-500.0,0.0005863,120]
[340048871,1728393089180,-482.82363321,0.0005863,120]
[340048872,1728393089191,-500.0,0.0005863,120]
[340048873,1728393089201,-500.0,0.0005863,18]
[340048874,1728393089211,-1050.9,0.0005863,18]
[340048875,1728393089221,-640.6,0.0005863,21]
[340048876,1728393089231,-500.0,0.0005863,120]
[340048877,1728393089240,-6665.61,0.0005863,20]
[340048878,1728393089250,-1007.11,0.0005863,18]
[340048879,1728393089259,-468.08,0.0005863,21]
[340048880,1728393089269,-500.0,0.0005863,120]
[340048881,1728393089280,-500.0,0.0005863,120]
[340048882,1728393089290,-500.0,0.0005863,120]
[340048883,1728393089299,-650.41,0.0005863,2]
[340048884,1728393089309,-500.0,0.0005863,120]
[340048885,1728393089319,-500.0,0.0005863,120]
[340048886,1728393089330,-3752.25,0.0005863,120]
[340048887,1728393089342,-4166.66,0.0005863,120]
[340048888,1728393089353,-872.91,0.0005863,120]
[340048889,1728393089364,-500.0,0.0005863,120]
[340048890,1728393089374,-500.0,0.0005863,120]
[340048891,1728393089385,-600.0,0.0005863,120]
[340048892,1728393089395,-500.0,0.0005863,120]
[340048893,1728393089406,-773.15,0.0005863,120]
[340048894,1728393089418,-1000.0,0.0005863,120]
[340048895,1728393089429,-597.43,0.00058904,120]
[340048896,1728393089439,-1000.0,0.00059,120]
[340048897,1728393089451,-500.0,0.00059178,120]
[340048898,1728393089462,-500.0,0.00059178,120]
[340048899,1728393089474,-500.0,0.00059178,30]
[340048900,1728393089484,-500.0,0.00059178,120]
[340048901,1728393089494,-500.0,0.00059178,120]
[340048902,1728393089504,-500.0,0.00059178,120]
[340048903,1728393089514,-500.0,0.00059178,120]
[340048904,1728393089527,-500.0,0.00059178,120]
[340048905,1728393089537,-500.0,0.00059178,120]
[340048906,1728393089546,-500.0,0.00059178,120]
[340048907,1728393089556,-500.0,0.00059178,120]
[340048908,1728393089565,-500.0,0.00059178,120]
[340048909,1728393089575,-500.0,0.00059178,120]
[340048910,1728393089586,-500.0,0.00059178,120]
[340048911,1728393089596,-1057.53,0.00059178,120]
[340048912,1728393089606,-8577.72,0.00059178,18]
[340048913,1728393089616,-500.0,0.00059178,120]
[340048914,1728393089626,-525.19,0.00059178,21]
[340048915,1728393089636,-4670.36,0.00059178,120]
[340048916,1728393089646,-500.0,0.00059178,120]
[340048917,1728393089655,-194.77637831,0.00059178,120]
[340048918,1728393089665,-2268.44,0.00059178,120]
[340048919,1728393089675,-1000.11,0.00059178,120]
[340048920,1728393089685,-479.11456486,0.00059178,120]
[340048921,1728393089695,-4166.62,0.00059178,120]
[340048922,1728393089705,-500.0,0.00059178,120]
[340048923,1728393089714,-500.0,0.00059178,120]
[340048924,1728393089724,-500.0,0.00059178,18]
[340048925,1728393089733,-1050.9,0.00059178,18]
[340048926,1728393089743,-500.0,0.00059178,120]
[340048927,1728393089753,-6665.61,0.00059178,20]
[340048928,1728393089763,-1007.11,0.00059178,18]
[340048929,1728393089772,-500.0,0.00059178,120]
[340048930,1728393089784,-500.0,0.00059178,120]
[340048931,1728393089794,-500.0,0.00059178,120]
[340048932,1728393089804,-650.41,0.00059178,2]
[340048933,1728393089815,-501.60802383,0.00059178,120]
[340048934,1728393089826,-500.0,0.00059178,120]
[340048935,1728393089837,-3752.25,0.00059178,120]
[340048936,1728393089846,-4166.66,0.00059178,120]
[340048937,1728393089857,-872.91,0.00059178,120]
[340048938,1728393089869,-500.0,0.00059178,120]
[340048939,1728393089881,-500.0,0.00059178,120]
[340048940,1728393089891,-600.0,0.00059178,120]
[340048941,1728393089902,-500.0,0.00059178,120]
[340048942,1728393089915,-773.15,0.00059178,120]
[340048943,1728393089925,-1000.0,0.00059178,120]
[340048944,1728393089938,-400.0,0.00059236,2]
[340048945,1728393089948,-500.0,0.00059726,120]
[340048946,1728393089958,-500.0,0.00059726,120]
[340048947,1728393089969,-500.0,0.00059726,30]
[340048948,1728393089979,-174.75489718,0.00059726,120]
[340048949,1728393089990,-500.0,0.00059726,120]
[340048950,1728393090001,-500.0,0.00059726,120]
[340048951,1728393090011,-500.0,0.00059726,120]
[340048952,1728393090024,-500.0,0.00059726,120]
[340048953,1728393090033,-500.0,0.00059726,120]
[340048954,1728393090043,-500.0,0.00059726,120]
[340048955,1728393090055,-301.79187032,0.00059726,120]
[340048956,1728393090069,-500.0,0.00059726,120]
[340048957,1728393090080,-500.0,0.00059726,120]
[340048958,1728393090091,-624.17960757,0.00059726,120]
[340048959,1728393090102,-1057.53,0.00059726,120]
[340048960,1728393090112,-8577.72,0.00059726,18]
[340048961,1728393090122,-500.0,0.00059726,120]
[340048962,1728393090131,-525.19,0.00059726,21]
[340048963,1728393090144,-4670.36,0.00059726,120]
[340048964,1728393090155,-500.0,0.00059726,120]
[340048965,1728393090165,-2268.44,0.00059726,120]
[340048966,1728393090177,-1000.11,0.00059726,120]
[340048967,1728393090188,-4166.62,0.00059726,120]
[340048968,1728393090268,-500.0,0.00059726,120]
[340048969,1728393090279,-500.0,0.00059726,120]
[340048970,1728393090289,-500.0,0.00059726,18]
[340048971,1728393090299,-1050.9,0.00059726,18]
[340048972,1728393090308,-500.0,0.00059726,120]
[340048973,1728393090318,-6665.61,0.00059726,20]
[340048974,1728393090327,-1007.11,0.00059726,18]
[340048975,1728393090337,-500.0,0.00059726,120]
[340048976,1728393090346,-500.0,0.00059726,120]
[340048977,1728393090356,-500.0,0.00059726,120]
[340048978,1728393090365,-650.41,0.00059726,2]
[340048979,1728393090374,-500.0,0.00059726,120]
[340048980,1728393090384,-3752.25,0.00059726,120]
[340048981,1728393090393,-4166.66,0.00059726,120]
[340048982,1728393090403,-872.91,0.00059726,120]
[340048983,1728393090412,-500.0,0.00059726,120]
[340048984,1728393090421,-500.0,0.00059726,120]
[340048985,1728393090431,-600.0,0.00059726,120]
[340048986,1728393090440,-505.86481222,0.00059726,120]
[340048987,1728393090449,-773.15,0.00059726,120]
[340048988,1728393090458,-1000.0,0.00059726,120]
[340048989,1728393090467,-2000.0,0.0006,60]
[340048990,1728393090477,-150.0,0.0006,120]
[340048991,1728393090486,-4500.0,0.0006,7]
[340048992,1728393090496,-1000.0,0.0006,120]
[340048993,1728393090505,-979.89839,0.0006,30]
[340048994,1728393090514,-1000.0,0.0006,120]
[340048995,1728393090524,-36677.53513846,0.0006,120]
[340048996,1728393090534,-500.0,0.00060185,120]
[340048997,1728393090543,-386.57782602,0.00060273,120]
[340048998,1728393090552,-500.0,0.00060273,120]
[340048999,1728393090562,-500.0,0.00060273,30]
[340049000,1728393090571,-500.0,0.00060273,120]
[340049001,1728393090580,-500.0,0.00060273,120]
[340049002,1728393090589,-500.0,0.00060273,120]
[340049003,1728393090599,-500.0,0.00060273,120]
[340049004,1728393090610,-500.0,0.00060273,120]
[340049005,1728393090620,-500.0,0.00060273,120]
[340049006,1728393090630,-500.0,0.00060273,120]
[340049007,1728393090642,-500.0,0.00060273,120]
[340049008,1728393090652,-1057.53,0.00060273,120]
[340049009,1728393090663,-8577.72,0.00060273,18]
[340049010,1728393090672,-500.0,0.00060273,120]
[340049011,1728393090684,-525.19,0.00060273,21]
[340049012,1728393090694,-4670.36,0.00060273,120]
[340049013,1728393090704,-500.0,0.00060273,120]
[340049014,1728393090713,-2268.44,0.00060273,120]
[340049015,1728393090723,-1000.11,0.00060273,120]
[340049016,1728393090734,-4166.62,0.00060273,120]
[340049017,1728393090745,-500.0,0.00060273,120]
[340049018,1728393090757,-500.0,0.00060273,120]
[340049019,1728393090767,-500.0,0.00060273,18]
[340049020,1728393090778,-1050.9,0.00060273,18]
[340049021,1728393090789,-500.0,0.00060273,120]
[340049022,1728393090799,-6665.61,0.00060273,20]
[340049023,1728393090808,-1007.11,0.00060273,18]
[340049024,1728393090818,-580.93,0.00060273,120]
[340049025,1728393090828,-500.0,0.00060273,120]
[340049026,1728393090838,-500.0,0.00060273,120]
[340049027,1728393090848,-650.41,0.00060273,2]
[340049028,1728393090858,-3752.25,0.00060273,120]
[340049029,1728393090868,-4166.66,0.00060273,120]
[340049030,1728393090879,-872.91,0.00060273,120]
[340049031,1728393090897,-500.0,0.00060273,120]
[340049032,1728393090918,-500.0,0.00060273,120]
[340049033,1728393090938,-600.0,0.00060273,120]
[340049034,1728393090961,-597.43,0.00060273,120]
[340049035,1728393090983,-773.15,0.00060273,120]
[340049036,1728393091004,-1000.0,0.00060273,120]
[340049037,1728393091025,-458.273718,0.00060418,120]
[340049038,1728393091040,-2000.0,0.00060487,15]
[340049039,1728393091062,-3767.22507674,0.00060753,28]
[340049040,1728393091083,-500.0,0.00060821,120]
[340049041,1728393091098,-500.0,0.00060821,30]
[340049042,1728393091116,-500.0,0.00060821,120]
[340049043,1728393091132,-506.10940698,0.00060821,120]
[340049044,1728393091154,-500.0,0.00060821,120]
[340049045,1728393091168,-500.0,0.00060821,120]
[340049046,1728393091185,-606.2497855,0.00060821,120]
[340049047,1728393091200,-500.0,0.00060821,120]
[340049048,1728393091215,-500.0,0.00060821,120]
[340049049,1728393091230,-500.0,0.00060821,120]
[340049050,1728393091244,-1057.53,0.00060821,120]
[340049051,1728393091259,-8577.72,0.00060821,18]
[340049052,1728393091274,-500.0,0.00060821,120]
[340049053,1728393091289,-525.19,0.00060821,21]
[340049054,1728393091304,-4670.36,0.00060821,120]
[340049055,1728393091319,-500.0,0.00060821,120]
[340049056,1728393091335,-2268.44,0.00060821,120]
[340049057,1728393091349,-1000.11,0.00060821,120]
[340049058,1728393091364,-4166.62,0.00060821,120]
[340049059,1728393091378,-500.0,0.00060821,120]
[340049060,1728393091393,-576.78,0.00060821,120]
[340049061,1728393091407,-500.0,0.00060821,18]
[340049062,1728393091421,-1050.9,0.00060821,18]
[340049063,1728393091435,-323.58,0.00060821,120]
[340049064,1728393091449,-6665.61,0.00060821,20]
[340049065,1728393091462,-1007.11,0.00060821,18]
[340049066,1728393091477,-500.0,0.00060821,120]
[340049067,1728393091491,-500.0,0.00060821,120]
[340049068,1728393091508,-650.41,0.00060821,2]
[340049069,1728393091523,-3752.25,0.00060821,120]
[340049070,1728393091539,-4166.66,0.00060821,120]
[340049071,1728393091555,-872.91,0.00060821,120]
[340049072,1728393091570,-500.0,0.00060821,120]
[340049073,1728393091585,-500.0,0.00060821,120]
[340049074,1728393091600,-600.0,0.00060821,120]
[340049075,1728393091615,-773.15,0.00060821,120]
[340049076,1728393091631,-1000.0,0.00060821,120]
[340049077,1728393091647,-150.0,0.00061,120]
[340049078,1728393091661,-500.0,0.00061369,120]
[340049079,1728393091677,-500.0,0.00061369,30]
[340049080,1728393091692,-500.0,0.00061369,120]
[340049081,1728393091707,-500.0,0.00061369,120]
[340049082,1728393091721,-500.0,0.00061369,120]
[340049083,1728393091735,-500.0,0.00061369,120]
[340049084,1728393091748,-553.01728222,0.00061369,120]
[340049085,1728393091763,-500.0,0.00061369,120]
[340049086,1728393091779,-1057.53,0.00061369,120]
[340049087,1728393091792,-8577.72,0.00061369,18]
[340049088,1728393091806,-500.0,0.00061369,120]
[340049089,1728393091820,-525.19,0.00061369,21]
[340049090,1728393091833,-4670.36,0.00061369,120]
[340049091,1728393091953,-527.3815344,0.00061369,120]
[340049092,1728393091963,-2268.44,0.00061369,120]
[340049093,1728393091972,-1000.11,0.00061369,120]
[340049094,1728393091981,-4166.62,0.00061369,120]
[340049095,1728393091990,-500.0,0.00061369,120]
[340049096,1728393091999,-500.0,0.00061369,18]
[340049097,1728393092008,-1050.9,0.00061369,18]
[340049098,1728393092017,-6665.61,0.00061369,20]
[340049099,1728393092028,-1007.11,0.00061369,18]
[340049100,1728393092038,-500.0,0.00061369,120]
[340049101,1728393092047,-500.0,0.00061369,120]
[340049102,1728393092058,-650.41,0.00061369,2]
[340049103,1728393092074,-3752.25,0.00061369,120]
[340049104,1728393092083,-4166.66,0.00061369,120]
[340049105,1728393092092,-872.91,0.00061369,120]
[340049106,1728393092103,-500.0,0.00061369,120]
[340049107,1728393092113,-500.0,0.00061369,120]
[340049108,1728393092122,-600.0,0.00061369,120]
[340049109,1728393092131,-773.15,0.00061369,120]
[340049110,1728393092143,-1000.0,0.00061369,120]
[340049111,1728393092152,-150.0,0.00061619,120]
[340049112,1728393092161,-500.0,0.00061643,120]
[340049113,1728393092171,-597.43,0.00061643,120]
[340049114,1728393092180,-500.0,0.00061917,120]
[340049115,1728393092189,-500.0,0.00061917,30]
[340049116,1728393092199,-500.0,0.00061917,120]
[340049117,1728393092208,-500.0,0.00061917,120]
[340049118,1728393092218,-500.0,0.00061917,120]
[340049119,1728393092228,-165.32637859,0.00061917,120]
[340049120,1728393092237,-500.0,0.00061917,120]
[340049121,1728393092247,-1057.53,0.00061917,120]
[340049122,1728393092257,-8577.72,0.00061917,18]
[340049123,1728393092266,-500.0,0.00061917,120]
[340049124,1728393092276,-525.19,0.00061917,21]
[340049125,1728393092286,-4670.36,0.00061917,120]
[340049126,1728393092295,-2268.44,0.00061917,120]
[340049127,1728393092305,-1000.11,0.00061917,120]
[340049128,1728393092314,-4166.62,0.00061917,120]
[340049129,1728393092323,-500.0,0.00061917,120]
[340049130,1728393092333,-500.0,0.00061917,18]
[340049131,1728393092343,-1050.9,0.00061917,18]
[340049132,1728393092353,-6665.61,0.00061917,20]
[340049133,1728393092362,-1007.11,0.00061917,18]
[340049134,1728393092372,-500.0,0.00061917,120]
[340049135,1728393092382,-500.0,0.00061917,120]
[340049136,1728393092391,-650.41,0.00061917,2]
[340049137,1728393092400,-3752.25,0.00061917,120]
[340049138,1728393092410,-4166.66,0.00061917,120]
[340049139,1728393092420,-872.91,0.00061917,120]
[340049140,1728393092429,-500.0,0.00061917,120]
[340049141,1728393092438,-500.0,0.00061917,120]
[340049142,1728393092448,-600.0,0.00061917,120]
[340049143,1728393092457,-773.15,0.00061917,120]
[340049144,1728393092467,-1000.0,0.00061917,120]
[340049145,1728393092476,-150.0,0.00062,120]
[340049146,1728393092486,-200.0,0.00062,120]
[340049147,1728393092495,-500.0,0.00062465,120]
[340049148,1728393092505,-500.0,0.00062465,30]
[340049149,1728393092515,-500.0,0.00062465,120]
[340049150,1728393092524,-500.0,0.00062465,120]
[340049151,1728393092536,-500.0,0.00062465,120]
[340049152,1728393092545,-500.0,0.00062465,120]
[340049153,1728393092555,-1057.53,0.00062465,120]
[340049154,1728393092564,-8577.72,0.00062465,18]
[340049155,1728393092573,-500.0,0.00062465,120]
[340049156,1728393092584,-525.19,0.00062465,21]
[340049157,1728393092594,-4670.36,0.00062465,120]
[340049158,1728393092603,-2268.44,0.00062465,120]
[340049159,1728393092612,-1000.11,0.00062465,120]
[340049160,1728393092622,-4166.62,0.00062465,120]
[340049161,1728393092632,-189.24049766,0.00062465,120]
[340049162,1728393092641,-500.0,0.00062465,18]
[340049163,1728393092650,-1050.9,0.00062465,18]
[340049164,1728393092660,-6665.61,0.00062465,20]
[340049165,1728393092669,-1007.11,0.00062465,18]
[340049166,1728393092679,-500.0,0.00062465,120]
[340049167,1728393092688,-500.0,0.00062465,120]
[340049168,1728393092698,-650.41,0.00062465,2]
[340049169,1728393092707,-3752.25,0.00062465,120]
[340049170,1728393092716,-4166.66,0.00062465,120]
[340049171,1728393092726,-872.91,0.00062465,120]
[340049172,1728393092735,-500.0,0.00062465,120]
[340049173,1728393092745,-500.0,0.00062465,120]
[340049174,1728393092754,-600.0,0.00062465,120]
[340049175,1728393092764,-773.15,0.00062465,120]
[340049176,1728393092774,-1000.0,0.00062465,120]
[340049177,1728393092784,-150.0,0.00063,120]
[340049178,1728393092794,-500.0,0.00063013,120]
[340049179,1728393092803,-500.0,0.00063013,30]
[340049180,1728393092813,-500.0,0.00063013,120]
[340049181,1728393092822,-500.0,0.00063013,120]
[340049182,1728393092831,-500.0,0.00063013,120]
[340049183,1728393092841,-500.0,0.00063013,120]
[340049184,1728393092850,-1057.53,0.00063013,120]
[340049185,1728393092861,-8577.72,0.00063013,18]
[340049186,1728393092870,-196.29480896,0.00063013,120]
[340049187,1728393092883,-525.19,0.00063013,21]
[340049188,1728393092894,-4670.36,0.00063013,120]
[340049189,1728393092904,-2268.44,0.00063013,120]
[340049190,1728393092914,-1000.11,0.00063013,120]
[340049191,1728393092925,-4166.62,0.00063013,120]
[340049192,1728393092936,-500.0,0.00063013,18]
[340049193,1728393092948,-1050.9,0.00063013,18]
[340049194,1728393092959,-6665.61,0.00063013,20]
[340049195,1728393092971,-1007.11,0.00063013,18]
[340049196,1728393092983,-500.0,0.00063013,120]
[340049197,1728393092994,-409.73596926,0.00063013,120]
[340049198,1728393093004,-650.41,0.00063013,2]
[340049199,1728393093015,-3752.25,0.00063013,120]
[340049200,1728393093027,-4166.66,0.00063013,120]
[340049201,1728393093036,-872.91,0.00063013,120]
[340049202,1728393093046,-500.0,0.00063013,120]
[340049203,1728393093055,-500.0,0.00063013,120]
[340049204,1728393093069,-600.0,0.00063013,120]
[340049205,1728393093080,-597.43,0.00063013,120]
[340049206,1728393093089,-773.15,0.00063013,120]
[340049207,1728393093099,-1000.0,0.00063013,120]
[340049208,1728393093109,-2500.0,0.00063078,15]
[340049209,1728393093118,-2000.0,0.000632,120]
[340049210,1728393093128,-2000.0,0.000632,120]
[340049211,1728393093139,-500.0,0.00063561,120]
[340049212,1728393093149,-500.0,0.00063561,30]
[340049213,1728393093158,-500.0,0.00063561,120]
[340049214,1728393093168,-500.0,0.00063561,120]
[340049215,1728393093177,-500.0,0.00063561,120]
[340049216,1728393093187,-500.0,0.00063561,120]
[340049217,1728393093196,-1057.53,0.00063561,120]
[340049218,1728393093206,-8577.72,0.00063561,18]
[340049219,1728393093215,-525.19,0.00063561,21]
[340049220,1728393093225,-4670.36,0.00063561,120]
[340049221,1728393093235,-2268.44,0.00063561,120]
[340049222,1728393093245,-1000.11,0.00063561,120]
[340049223,1728393093254,-4166.62,0.00063561,120]
[340049224,1728393093263,-500.0,0.00063561,18]
[340049225,1728393093273,-1050.9,0.00063561,18]
[340049226,1728393093284,-6665.61,0.00063561,20]
[340049227,1728393093294,-1007.11,0.00063561,18]
[340049228,1728393093382,-500.0,0.00063561,120]
[340049229,1728393093393,-650.41,0.00063561,2]
[340049230,1728393093403,-3752.25,0.00063561,120]
[340049231,1728393093415,-4166.66,0.00063561,120]
[340049232,1728393093424,-872.91,0.00063561,120]
[340049233,1728393093435,-500.0,0.00063561,120]
[340049234,1728393093445,-500.0,0.00063561,120]
[340049235,1728393093455,-600.0,0.00063561,120]
[340049236,1728393093465,-773.15,0.00063561,120]
[340049237,1728393093476,-1000.0,0.00063561,120]
[340049238,1728393093486,-200.0,0.00064,120]
[340049239,1728393093495,-1000.0,0.00064,120]
[340049240,1728393093505,-10966.851745,0.00064,120]
[340049241,1728393093516,-400.0,0.00064095,2]
[340049242,1728393093526,-500.0,0.00064109,120]
[340049243,1728393093537,-467.96832027,0.00064109,30]
[340049244,1728393093548,-500.0,0.00064109,120]
[340049245,1728393093558,-500.0,0.00064109,120]
[340049246,1728393093567,-500.0,0.00064109,120]
[340049247,1728393093577,-500.0,0.00064109,120]
[340049248,1728393093587,-1057.53,0.00064109,120]
[340049249,1728393093597,-8577.72,0.00064109,18]
[340049250,1728393093606,-525.19,0.00064109,21]
[340049251,1728393093617,-4670.36,0.00064109,120]
[340049252,1728393093628,-2268.44,0.00064109,120]
[340049253,1728393093637,-1000.11,0.00064109,120]
[340049254,1728393093647,-4166.62,0.00064109,120]
[340049255,1728393093657,-500.0,0.00064109,18]
[340049256,1728393093666,-1050.9,0.00064109,18]
[340049257,1728393093676,-6665.61,0.00064109,20]